{"text_format":"1","workbook":"xlsx","n_sheets":6,"sheets":["Tabulky dívky","Pavouk dívky","Pavouk Chlapci","Tabulky chlapci"," Pořadí dívky","Pořadí chlapci"],"not_rendered":{"charts":0,"images":1,"macros":1,"external_links":0,"defined_names":4,"comments":0,"pivot_tables":0},"unopened":[],"bounds":{"document_bytes":16777216,"sheet_cells":100000,"rows_first":2000,"rows_last":500,"rows_between":2000,"halvings":0,"cell_chars":16384,"cell_head_chars":4096},"cells_cut":0,"cells_raw":0,"read":"whole","date_system":"1900"}

{"sheet":"Tabulky dívky","index":0,"n_rows":69,"n_cols":9,"rows_kept":69,"cut":false,"hidden":false,"merged":[]}
[]
["Skupina A - kurt ",null,"Bernas Skrollan","Pešková Erika","Kahounová Sofie","Mrkvičková Josefína","Pořadí","Počet vítězství"]
["A1","Bernas Skrollan",null,"4-0","4-0","4-2","1.","3"]
["A2","Pešková Erika","0-4",null,"4-3","0-4","3.","1"]
["A3","Kahounová Sofie","0-4","3-4",null,"0-4","4.","0"]
["A4","Mrkvičková Josefína","2-4","4-0","4-0",null,"2.","2"]
[]
["Skupina B -  kurt ",null,"Slobodová Markéta","Koudelová Sabina","Klementova Veronika","Davis Eva","Schwarzová Kateřina","Pořadí","Počet vítězství"]
["B1","Slobodová Markéta",null,"4-0","4-0","4-1","4-0","1.","4"]
["B2","Koudelová Sabina","0-4",null,"0-4","2-4","4-3","4.","1"]
["B3","Klementova Veronika","0-4","4-0",null,"1-4","4-1","3.","2"]
["B4","Davis Eva","1-4","4-2","4-1",null,"4-0","2.","3"]
["B5","Schwarzová Kateřina","0-4","3-4","1-4","0-4",null,"5.","0"]
[]
["Skupina C - kurt ",null,"Brňovjáková Kateřina","Nováková Lucie","Bártková Karolina","Dolečková Darija","Jurková Valerie","Pořadí","Počet vítězství"]
["C1","Brňovjáková Kateřina",null,"3-4","4-3","4-1","4-1","2.","3"]
["C2","Nováková Lucie","4-3",null,"4-0","4-0","4-1","1.","4"]
["C3","Bártková Karolina","3-4","0-4",null,"4-1","2-4","4.","1"]
["C4","Dolečková Darija","1-4","0-4","1-4",null,"2-4","5.","0"]
["C5","Jurková Valerie","1-4","1-4","4-2","4-2",null,"3.","2"]
[]
["Skupina D - kurt ",null,"Hájková Karolína","Hávová Tereza","Chovancová Isabel","Mottlová Klaudie","Osladilová Sára","Pořadí","Počet vítězství"]
["D1","Hájková Karolína",null,"4-1","4-2","3-4","4-1","1.","3"]
["D2","Hávová Tereza","1-4",null,"4-3","4-1","3-4","3.","2"]
["D3","Chovancová Isabel","2-4","3-4",null,"2-4","2-4","5.","0"]
["D4","Mottlová Klaudie","4-3","1-4","4-2",null,"2-4","4.","2"]
["D5","Osladilová Sára","1-4","4-3","4.-2","4-2",null,"2.","3"]
[]
["Skupina E - kurt",null,0,0,0,0,0,"Pořadí","Počet vítězství"]
["E1",0,null,0,0,0,0]
["E2",0,null,null,0,0,0]
["E3",0,null,null,null,0,0]
["E4",0,null,null,null,null,0]
["E5",0]
[]
["Skupina F - kurt",null,0,0,0,0,0,"Pořadí","Počet vítězství"]
["F1",0,null,0,0,0,0]
["F2",0,null,null,0,0,0]
["F3",0,null,null,null,0,0]
["F4",0,null,null,null,null,0]
["F5",0]
[]
["Skupina G - kurt ",null,0,0,0,0,0,"Pořadí","Počet vítězství"]
["G1",0,null,0,0,0,0]
["G2",0,null,null,0,0,0]
["G3",0,null,null,null,0,0]
["G4",0,null,null,null,null,0]
["G5",0]
[]
["Skupina H - kurt ",null,0,0,0,0,0,"Pořadí","Počet vítězství"]
["H1",0,null,0,0,0,0]
["H2",0,null,null,0,0,0]
["H3",0,null,null,null,0,0]
["H4",0,null,null,null,null,0]
["H5",0]
[]
["Skupina I - kurt ",null,0,0,0,0,0,"Pořadí","Počet vítězství"]
["I1",0,null,0,0,0,0]
["I2",0,null,null,0,0,0]
["I3",0,null,null,null,0,0]
["I4",0,null,null,null,null,0]
["I5",0]
[]
["Skupina J - kurt ",null,0,0,0,0,0,"Pořadí","Počet vítězství"]
["J1",0,null,0,0,0,0]
["J2",0,null,null,0,0,0]
["J3",0,null,null,null,0,0]
["J4",0,null,null,null,null,0]
["J5",0]

{"sheet":"Pavouk dívky","index":1,"n_rows":32,"n_cols":3,"rows_kept":32,"cut":false,"hidden":false,"merged":[]}
[]
[]
[]
["Bernas Skrollan"]
[]
[null,"Bernas Skrollan"]
[null,"4-0"]
["Brňovjáková Kateřina"]
[]
[null,null,"Bernas Skrollan"]
[null,null,"4-0"]
["Davis Eva"]
[]
[null,"Hájková Karolína"]
[null,"4-2"]
["Hájková Karolína"]
[]
[null,null,"Slobodová Markéta"]
[null,null,"4-3"]
["Nováková Lucie"]
[]
[null,"Nováková Lucie"]
[null,"4-3"]
["Mrkvičková Josefína"]
[]
[null,null,"Slobodová Markéta"]
[null,null,"4-1"]
["Osladilová Sára"]
[]
[null,"Slobodová Markéta"]
[null,"4-1"]
["Slobodová Markéta"]

{"sheet":"Pavouk Chlapci","index":2,"n_rows":30,"n_cols":2,"rows_kept":30,"cut":false,"hidden":false,"merged":[]}
[]
[]
[]
[]
[]
["Kačín Lukáš"]
[]
[]
[]
[null,"Kačín Lukáš"]
[null,"4-0"]
[]
[]
["Pražák Jakub"]
[]
[]
[]
[null,"Kačín Lukáš"]
[null,"4-0"]
[]
[]
["Šimánek Bruno"]
[]
[]
[]
[null,"Komárek Matěj"]
[null,"4-0"]
[]
[]
["Komárek Matěj"]

{"sheet":"Tabulky chlapci","index":3,"n_rows":69,"n_cols":9,"rows_kept":69,"cut":false,"hidden":false,"merged":[]}
[]
["Skupina A - kurt ",null,"Kačín Lukáš","Šimánek Bruno","Dreier Dominic","Talpa Robin","Pořadí","Počet vítězství"]
["A1","Kačín Lukáš",null,"4-0","4-0","4-0","1.","3"]
["A2","Šimánek Bruno","0-4",null,"1-4","4-0","2.","1"]
["A3","Dreier Dominic","0-4","4-1",null,"0-4","4.","1"]
["A4","Talpa Robin","0-4","0-4","4-0",null,"3.","1"]
[]
["Skupina B -  kurt ",null,"Komárek Matěj","Krejčí Karel","Pražák Jakub","Malik David Ervin","Kraus Jakub Josef","Pořadí","Počet vítězství"]
["B1","Komárek Matěj",null,"4-1","4-3","4-1","4-0","1.","4"]
["B2","Krejčí Karel","1-4",null,"0-4","2-4","4-3","4.","1"]
["B3","Pražák Jakub","3-4","4-0",null,"4-2","4-0","2.","3"]
["B4","Malik David Ervin","1-4","4-2","2-4",null,"3-4","3.","1"]
["B5","Kraus Jakub Josef","0-4","3-4","0-4","4-3",null,"5.","1"]
[]
["Skupina C - kurt ",null,0,0,0,0,0,"Pořadí","Počet vítězství"]
["C1",0,null,0,0,0,0]
["C2",0,null,null,0,0,0]
["C3",0,null,null,null,0,0]
["C4",0,null,null,null,null,0]
["C5",0]
[]
["Skupina D - kurt ",null,0,0,0,0,0,"Pořadí","Počet vítězství"]
["D1",0,null,0,0,0,0]
["D2",0,null,null,0,0,0]
["D3",0,null,null,null,0,0]
["D4",0,null,null,null,null,0]
["D5",0]
[]
["Skupina E - kurt",null,0,0,0,0,0,"Pořadí","Počet vítězství"]
["E1",0,null,0,0,0,0]
["E2",0,null,null,0,0,0]
["E3",0,null,null,null,0,0]
["E4",0,null,null,null,null,0]
["E5",0]
[]
["Skupina F - kurt",null,0,0,0,0,0,"Pořadí","Počet vítězství"]
["F1",0,null,0,0,0,0]
["F2",0,null,null,0,0,0]
["F3",0,null,null,null,0,0]
["F4",0,null,null,null,null,0]
["F5",0]
[]
["Skupina G - kurt ",null,0,0,0,0,0,"Pořadí","Počet vítězství"]
["G1",0,null,0,0,0,0]
["G2",0,null,null,0,0,0]
["G3",0,null,null,null,0,0]
["G4",0,null,null,null,null,0]
["G5",0]
[]
["Skupina H - kurt ",null,0,0,0,0,0,"Pořadí","Počet vítězství"]
["H1",0,null,0,0,0,0]
["H2",0,null,null,0,0,0]
["H3",0,null,null,null,0,0]
["H4",0,null,null,null,null,0]
["H5",0]
[]
["Skupina I - kurt ",null,0,0,0,0,0,"Pořadí","Počet vítězství"]
["I1",0,null,0,0,0,0]
["I2",0,null,null,0,0,0]
["I3",0,null,null,null,0,0]
["I4",0,null,null,null,null,0]
["I5",0]
[]
["Skupina J - kurt ",null,0,0,0,0,0,"Pořadí","Počet vítězství"]
["J1",0,null,0,0,0,0]
["J2",0,null,null,0,0,0]
["J3",0,null,null,null,0,0]
["J4",0,null,null,null,null,0]
["J5",0]

{"sheet":" Pořadí dívky","index":4,"n_rows":46,"n_cols":7,"rows_kept":46,"cut":false,"hidden":false,"merged":[]}
["POŘADÍ - SPARTA HEAD BABYTENIS TOUR Zima  2023 - Dívky"]
[]
[]
[]
[]
[]
[]
[]
[]
[]
[]
[]
[]
[]
[]
[]
[]
[]
[]
[]
[]
[]
[]
["Pořadí","Příjmení","1. turnaj","2. turnaj","3. turnaj","Masters","Celkem"]
["1.","Slobodová Markéta",200,300,null,null,{"$f":"SUM(C25:F25)","v":500}]
["2.","Bernas Skrollan ",200,250,null,null,450]
["3.","Stejskalová Julie",300,0,null,null,300]
["4.","Burešová Ella",250,0,null,null,250]
["5.","Hájková Karolína",20,200,null,null,220]
["6.-7.","Brňovjáková Kateřina",100,100,null,null,200]
[null,"Nováková Lucie",0,200,null,null,200]
["8.","Osladilová Sára",10,100,null,null,110]
["9.-11.","Svoboda Iva",100,0,null,null,100]
[null,"Davis Eva",0,100,null,null,100]
[null,"Mrkvičková Josefína",0,100,null,null,100]
["12.","Jurková Valerie",20,20,null,null,40]
["13.-14.","Dolečková Darija",20,5,null,null,25]
[null,"Pešková Erika",5,20,null,null,25]
["15.-17.","Koudelová Sabina",10,10,null,null,20]
[null,"Klementová Veronika",0,20,null,null,20]
[null,"Hávová Tereza",0,20,null,null,20]
["18.","Mottlová Klaudie",5,10,null,null,15]
["19.-20","Bártková Karolína",0,10,null,null,10]
[null,"Kahounová Sofie",0,10,null,null,10]
["21.-22.","Schwarzová Kateřina",0,5,null,null,5]
[null,"Chovancová Isabel",0,5,null,null,5]

{"sheet":"Pořadí chlapci","index":5,"n_rows":45,"n_cols":7,"rows_kept":45,"cut":false,"hidden":false,"merged":[]}
["POŘADÍ - SPARTA HEAD BABYTENIS TOUR Zima  2023 - Chlapci"]
[]
[]
[]
[]
[]
[]
[]
[]
[]
[]
[]
[]
[]
[]
[]
[]
[]
[]
[]
[]
[]
[]
["Pořadí","Příjmení","1. turnaj","2. turnaj","3. turnaj","Masters","Celkem"]
["1.","Kačín Lukáš",300,300,null,null,{"$f":"SUM(C25:F25)","v":600}]
["2.","Komárek Matěj",200,250,null,null,450]
["3.","Gorecký Pavel Levi",250,0,null,null,250]
["4.","Šimánek Bruno",10,200,null,null,210]
["5.-6.","Hayek Denis",200,0,null,null,200]
[null,"Pražák Jakub",0,200,null,null,200]
["7.-10.","Fejfar Samuel",100,0,null,null,100]
[null,"Haišman Jaroslav",100,0,null,null,100]
[null,"Novák Lubomír",100,0,null,null,100]
[null,"Rožek Filip",100,0,null,null,100]
["11.","Krejčí Karel",20,10,null,null,30]
["12.-13","Kraus Jakub Josef",20,5,null,null,25]
[null,"Talpa Robin",5,20,null,null,25]
["14.-16.","Holomek Aleš",20,0,null,null,20]
[null,"Lorinczy Barnabás",20,0,null,null,20]
[null,"Malik David Ervin",0,20,null,null,20]
["17.-20.","Douša Adam",10,0,null,null,10]
[null,"Filatov Egor",10,0,null,null,10]
[null,"Poldauf Leonard",10,0,null,null,10]
[null,"Dreier Dominic",0,10,null,null,10]
["21.","Honzírek Petr",5,0,null,null,5]